fUSD/lending_fUSD_20260601
["ID","MTS","AMOUNT","RATE_DAILY","PERIOD"]
[423592227,1780252251000,-2474.04258438,0.00032,120]
[423592232,1780252251000,-1763.2305975,0.00032,2]
[423592225,1780252251000,-922.9385503,0.00032,120]
[423592235,1780252251000,-287.0,0.00032078,2]
[423592223,1780252251000,-1036.60253855,0.00032,120]
[423592234,1780252251000,-200.0,0.00032055,2]
[423592228,1780252251000,-1106.55898899,0.00032,120]
[423592229,1780252251000,-703.41061854,0.00032,120]
[423592233,1780252251000,-700.0,0.00032,2]
[423592244,1780252251000,-151.0,0.00032329,7]
[423592237,1780252251000,-1226.0,0.00032078,2]
[423592199,1780252251000,-903.38081731,0.00031783,2]
[423592230,1780252251000,-1298.59053919,0.00032,120]
[423592207,1780252251000,-655.0,0.00031943,7]
[423592175,1780252251000,-157.0,0.00031694,30]
[423592203,1780252251000,-944.43837841,0.00031783,2]
[423592177,1780252251000,-1199.0,0.00031694,30]
[423592174,1780252251000,-1144.0,0.00031692,30]
[423592176,1780252251000,-220.0,0.00031694,30]
[423592179,1780252251000,-287.0,0.00031694,30]
[423592178,1780252251000,-444.0,0.00031694,30]
[423592181,1780252251000,-486.43,0.000317,7]
[423592180,1780252251000,-839.0,0.00031694,30]
[423592182,1780252251000,-5020.83,0.000317,14]
[423592183,1780252251000,-192.0,0.00031727,30]
[423592190,1780252251000,-1406.63848496,0.00031755,2]
[423592195,1780252251000,-772.72186778,0.00031755,2]
[423592185,1780252251000,-1183.85704264,0.00031755,2]
[423592184,1780252251000,-1841.0,0.00031727,30]
[423592192,1780252251000,-767.39621524,0.00031755,2]
[423592202,1780252251000,-840.59431187,0.00031783,2]
[423592188,1780252251000,-1463.74588997,0.00031755,2]
[423592193,1780252251000,-783.90616138,0.00031755,2]
[423592187,1780252251000,-1354.72065365,0.00031755,2]
[423592191,1780252251000,-757.85530995,0.00031755,2]
[423592194,1780252251000,-980.8718986,0.00031755,2]
[423592186,1780252251000,-849.86239115,0.00031755,2]
[423592189,1780252251000,-832.98539449,0.00031755,2]
[423592201,1780252251000,-788.12267262,0.00031783,2]
[423592205,1780252251000,-886.76870225,0.00031826,2]
[423592198,1780252251000,-822.37149995,0.00031783,2]
[423592206,1780252251000,-10000.0,0.000319,2]
[423592208,1780252251000,-1001.0,0.00031945,120]
[423592209,1780252251000,-1922.37921332,0.00032,120]
[423592204,1780252251000,-772.63837874,0.00031783,2]
[423592200,1780252251000,-845.93449041,0.00031783,2]
[423592196,1780252251000,-857.18629111,0.00031759,2]
[423592248,1780252251000,-151.0,0.00032329,7]
[423592238,1780252251000,-932.0,0.00032078,2]
[423592246,1780252251000,-151.0,0.00032329,7]
[423592289,1780252251000,-1199.0,0.00032694,30]
[423592278,1780252251000,-1008.71317425,0.0003267,2]
[423592284,1780252251000,-343.0,0.00032692,30]
[423592287,1780252251000,-157.0,0.00032694,30]
[423592277,1780252251000,-984.4391092,0.0003267,2]
[423592280,1780252251000,-26897.0,0.00032685,2]
[423592281,1780252251000,-163.0,0.00032688,11]
[423592282,1780252251000,-321.0,0.00032692,30]
[423592279,1780252251000,-927.16605449,0.0003267,2]
[423592290,1780252251000,-444.0,0.00032694,30]
[423592283,1780252251000,-513.0,0.00032692,30]
[423592288,1780252251000,-220.0,0.00032694,30]
[423592286,1780252251000,-1144.0,0.00032692,30]
[423592291,1780252251000,-287.0,0.00032694,30]
[423592271,1780252251000,-909.42637194,0.00032641,2]
[423592293,1780252251000,-1064.12244269,0.00032714,2]
[423592304,1780252251000,-500.0,0.00032876,2]
[423592302,1780252251000,-268.7533096,0.00032876,2]
[423592303,1780252251000,-500.0,0.00032876,2]
[423592299,1780252251000,-500.0,0.00032876,2]
[423592296,1780252251000,-1841.0,0.00032727,30]
[423592295,1780252251000,-192.0,0.00032727,30]
[423592298,1780252251000,-409.62183738,0.00032876,2]
[423592300,1780252251000,-500.0,0.00032876,2]
[423592294,1780252251000,-1062.4931757,0.00032714,2]
[423592297,1780252251000,-4920.76035741,0.000328,2]
[423592301,1780252251000,-500.0,0.00032876,2]
[423592306,1780252251000,-500.0,0.00032876,2]
[423592305,1780252251000,-500.0,0.00032876,2]
[423592240,1780252251000,-257.72,0.000322,12]
[423592292,1780252251000,-839.0,0.00032694,30]
[423592272,1780252251000,-920.87545828,0.00032641,2]
[423592285,1780252251000,-1421.0,0.00032692,30]
[423592269,1780252251000,-1756.49506797,0.00032641,2]
[423592261,1780252251000,-1000.0,0.000325,7]
[423592250,1780252251000,-151.0,0.00032329,7]
[423592258,1780252251000,-655.0,0.00032477,7]
[423592257,1780252251000,-5020.83,0.000324,14]
[423592262,1780252251000,-2000.0,0.000325,7]
[423592253,1780252251000,-2319.0,0.00032368,11]
[423592254,1780252251000,-163.0,0.00032368,11]
[423592245,1780252251000,-151.0,0.00032329,7]
[423592241,1780252251000,-805.18,0.000322,7]
[423592242,1780252251000,-772.6,0.0003221,5]
[423592236,1780252251000,-1273.0,0.00032078,2]
[423592239,1780252251000,-7244.9602,0.00032137,30]
[423592275,1780252251000,-1008.54767336,0.0003267,2]
[423592247,1780252251000,-151.0,0.00032329,7]
[423592243,1780252251000,-910.48535076,0.000323,2]
[423592259,1780252251000,-2000.0,0.00032498,28]
[423592260,1780252251000,-1000.0,0.000325,2]
[423592268,1780252251000,-1625.66478438,0.00032641,2]
[423592263,1780252251000,-150.0,0.00032562,2]
[423592252,1780252251000,-199.566695,0.00032329,7]
[423592265,1780252251000,-212.02958337,0.00032634,4]
[423592264,1780252251000,-1739.39,0.000326,7]
[423592266,1780252251000,-1420.62845116,0.00032641,2]
[423592273,1780252251000,-940.68739366,0.00032641,2]
[423592270,1780252251000,-1687.96618195,0.00032641,2]
[423592274,1780252251000,-1003.75646368,0.00032641,2]
[423592276,1780252251000,-945.74720714,0.0003267,2]
[423592251,1780252251000,-151.0,0.00032329,7]
[423592255,1780252251000,-7764.55,0.0003238,14]
[423592249,1780252251000,-151.0,0.00032329,7]
[423592256,1780252251000,-486.43,0.000324,7]
[423592267,1780252251000,-1019.83486938,0.00032641,2]
[423592354,1780252252000,-364.59165124,0.00033,120]
[423592357,1780252252000,-665.30118934,0.00033,120]
[423592360,1780252252000,-689.86263822,0.00033,120]
[423592355,1780252252000,-1072.17459399,0.00033,120]
[423592359,1780252252000,-636.0766213,0.00033,120]
[423592352,1780252252000,-753.93666593,0.00033,120]
[423592342,1780252252000,-400.0,0.00032955,2]
[423592337,1780252252000,-500.0,0.00032877,2]
[423592340,1780252252000,-419.05891266,0.00032955,2]
[423592341,1780252252000,-246.09559064,0.00032955,2]
[423592345,1780252252000,-403.93373113,0.00032955,2]
[423592344,1780252252000,-400.0,0.00032955,2]
[423592351,1780252252000,-499.59871036,0.00033,120]
[423592350,1780252252000,-1019.81649657,0.00033,120]
[423592348,1780252252000,-1922.37921332,0.00033,120]
[423592368,1780252252000,-703.41061854,0.00033,120]
[423592349,1780252252000,-1516.05562058,0.00033,120]
[423592358,1780252252000,-1092.64746426,0.00033,120]
[423592356,1780252252000,-2333.49973571,0.00033,120]
[423592361,1780252252000,-2445.37886363,0.00033,120]
[423592363,1780252252000,-797.16641382,0.00033,120]
[423592374,1780252252000,-1047.58031507,0.00033,30]
[423592373,1780252252000,-1771.99849852,0.00033,3]
[423592375,1780252252000,-157.06,0.00033,2]
[423592364,1780252252000,-922.9385503,0.00033,120]
[423592362,1780252252000,-1036.60253855,0.00033,120]
[423592365,1780252252000,-1071.12217871,0.00033,120]
[423592369,1780252252000,-1298.59053919,0.00033,120]
[423592367,1780252252000,-1106.55898899,0.00033,120]
[423592346,1780252252000,-540.237503,0.0003298,120]
[423592353,1780252252000,-1057.84613436,0.00033,120]
[423592347,1780252252000,-502.82253,0.0003298,120]
[423592312,1780252252000,-500.0,0.00032876,2]
[423592343,1780252252000,-400.0,0.00032955,2]
[423592371,1780252252000,-220.14,0.00033,14]
[423592307,1780252252000,-500.0,0.00032876,2]
[423592315,1780252252000,-500.0,0.00032876,2]
[423592316,1780252252000,-500.0,0.00032876,2]
[423592310,1780252252000,-500.0,0.00032876,2]
[423592317,1780252252000,-500.0,0.00032876,2]
[423592313,1780252252000,-500.0,0.00032876,2]
[423592309,1780252252000,-197.48736701,0.00032876,2]
[423592314,1780252252000,-500.0,0.00032876,2]
[423592311,1780252252000,-500.0,0.00032876,2]
[423592318,1780252252000,-500.0,0.00032876,2]
[423592308,1780252252000,-396.37306164,0.00032876,2]
[423592319,1780252252000,-438.14850706,0.00032876,2]
[423592325,1780252252000,-500.0,0.00032876,2]
[423592330,1780252252000,-350.8,0.00032877,2]
[423592322,1780252252000,-500.0,0.00032876,2]
[423592328,1780252252000,-500.0,0.00032876,2]
[423592335,1780252252000,-500.0,0.00032877,2]
[423592334,1780252252000,-500.0,0.00032877,2]
[423592333,1780252252000,-423.13003328,0.00032877,2]
[423592336,1780252252000,-500.0,0.00032877,2]
[423592338,1780252252000,-407.0,0.00032955,2]
[423592332,1780252252000,-500.0,0.00032877,2]
[423592339,1780252252000,-407.0,0.00032955,2]
[423592331,1780252252000,-500.0,0.00032877,2]
[423592327,1780252252000,-500.0,0.00032876,2]
[423592326,1780252252000,-474.91217339,0.00032876,2]
[423592320,1780252252000,-350.2399509,0.00032876,2]
[423592324,1780252252000,-500.0,0.00032876,2]
[423592321,1780252252000,-500.0,0.00032876,2]
[423592323,1780252252000,-500.0,0.00032876,2]
[423592329,1780252252000,-500.0,0.00032876,2]
[423592366,1780252252000,-2474.04258438,0.00033,120]
[423592387,1780252252000,-200.0,0.00033041,2]
[423592372,1780252252000,-954.64881168,0.00033,7]
[423592413,1780252252000,-200.0,0.00033041,2]
[423592408,1780252252000,-200.0,0.00033041,2]
[423592412,1780252252000,-200.0,0.00033041,2]
[423592416,1780252252000,-200.0,0.00033041,2]
[423592427,1780252252000,-200.0,0.00033041,2]
[423592426,1780252252000,-200.0,0.00033041,2]
[423592418,1780252252000,-200.0,0.00033041,2]
[423592417,1780252252000,-200.0,0.00033041,2]
[423592425,1780252252000,-200.0,0.00033041,2]
[423592422,1780252252000,-200.0,0.00033041,2]
[423592415,1780252252000,-200.0,0.00033041,2]
[423592421,1780252252000,-200.0,0.00033041,2]
[423592420,1780252252000,-200.0,0.00033041,2]
[423592419,1780252252000,-200.0,0.00033041,2]
[423592409,1780252252000,-200.0,0.00033041,2]
[423592423,1780252252000,-200.0,0.00033041,2]
[423592429,1780252252000,-200.0,0.00033041,2]
[423592439,1780252252000,-200.0,0.00033041,2]
[423592428,1780252252000,-200.0,0.00033041,2]
[423592430,1780252252000,-200.0,0.00033041,2]
[423592432,1780252252000,-200.0,0.00033041,2]
[423592434,1780252252000,-200.0,0.00033041,2]
[423592436,1780252252000,-200.0,0.00033041,2]
[423592440,1780252252000,-154.0,0.00033041,2]
[423592370,1780252252000,-593.30220303,0.00033,120]
[423592441,1780252252000,-486.43,0.000331,30]
[423592435,1780252252000,-200.0,0.00033041,2]
[423592437,1780252252000,-200.0,0.00033041,2]
[423592431,1780252252000,-200.0,0.00033041,2]
[423592438,1780252252000,-200.0,0.00033041,2]
[423592424,1780252252000,-200.0,0.00033041,2]
[423592414,1780252252000,-200.0,0.00033041,2]
[423592433,1780252252000,-200.0,0.00033041,2]
[423592410,1780252252000,-200.0,0.00033041,2]
[423592411,1780252252000,-200.0,0.00033041,2]
[423592377,1780252252000,-350.0,0.00033014,5]
[423592376,1780252252000,-655.0,0.00033011,8]
[423592379,1780252252000,-500.0,0.00033041,2]
[423592385,1780252252000,-200.0,0.00033041,2]
[423592381,1780252252000,-500.0,0.00033041,2]
[423592380,1780252252000,-500.0,0.00033041,2]
[423592383,1780252252000,-500.0,0.00033041,2]
[423592382,1780252252000,-500.0,0.00033041,2]
[423592386,1780252252000,-200.0,0.00033041,2]
[423592388,1780252252000,-200.0,0.00033041,2]
[423592384,1780252252000,-530.0,0.00033041,2]
[423592400,1780252252000,-200.0,0.00033041,2]
[423592401,1780252252000,-200.0,0.00033041,2]
[423592390,1780252252000,-200.0,0.00033041,2]
[423592378,1780252252000,-500.0,0.00033041,2]
[423592391,1780252252000,-200.0,0.00033041,2]
[423592389,1780252252000,-200.0,0.00033041,2]
[423592403,1780252252000,-200.0,0.00033041,2]
[423592407,1780252252000,-200.0,0.00033041,2]
[423592405,1780252252000,-200.0,0.00033041,2]
[423592406,1780252252000,-200.0,0.00033041,2]
[423592402,1780252252000,-166.0,0.00033041,2]
[423592397,1780252252000,-200.0,0.00033041,2]
[423592404,1780252252000,-200.0,0.00033041,2]
[423592395,1780252252000,-200.0,0.00033041,2]
[423592396,1780252252000,-200.0,0.00033041,2]
[423592393,1780252252000,-200.0,0.00033041,2]
[423592394,1780252252000,-200.0,0.00033041,2]
[423592398,1780252252000,-200.0,0.00033041,2]
[423592399,1780252252000,-200.0,0.00033041,2]
[423592392,1780252252000,-200.0,0.00033041,2]
[423592496,1780252253000,-593.30220303,0.000339,120]
[423592479,1780252253000,-1057.84613436,0.000339,120]
[423592483,1780252253000,-665.30118934,0.000339,120]
[423592481,1780252253000,-1072.17459399,0.000339,120]
[423592475,1780252253000,-1516.05562058,0.000339,120]
[423592477,1780252253000,-499.59871036,0.000339,120]
[423592478,1780252253000,-753.93666593,0.000339,120]
[423592473,1780252253000,-251.15,0.00033811,7]
[423592474,1780252253000,-1922.37921332,0.000339,120]
[423592476,1780252253000,-1019.81649657,0.000339,120]
[423592480,1780252253000,-364.59165124,0.000339,120]
[423592471,1780252253000,-433.31436012,0.00033753,2]
[423592490,1780252253000,-922.9385503,0.000339,120]
[423592484,1780252253000,-1092.64746426,0.000339,120]
[423592486,1780252253000,-689.86263822,0.000339,120]
[423592485,1780252253000,-636.0766213,0.000339,120]
[423592489,1780252253000,-797.16641382,0.000339,120]
[423592488,1780252253000,-1036.60253855,0.000339,120]
[423592492,1780252253000,-2474.04258438,0.000339,120]
[423592487,1780252253000,-2445.37886363,0.000339,120]
[423592491,1780252253000,-1071.12217871,0.000339,120]
[423592493,1780252253000,-1106.55898899,0.000339,120]
[423592494,1780252253000,-703.41061854,0.000339,120]
[423592472,1780252253000,-217.45054148,0.00033804,14]
[423592482,1780252253000,-2333.49973571,0.000339,120]
[423592470,1780252253000,-1841.0,0.00033727,30]
[423592447,1780252253000,-1000.92020843,0.000335,2]
[423592466,1780252253000,-309.0,0.000337,2]
[423592443,1780252253000,-2000.0,0.00033199,16]
[423592453,1780252253000,-2319.0,0.00033649,11]
[423592454,1780252253000,-319.94370205,0.0003366,2]
[423592442,1780252253000,-5020.83,0.000331,14]
[423592445,1780252253000,-1500.0,0.000334,7]
[423592444,1780252253000,-209.7,0.000332,16]
[423592455,1780252253000,-321.0,0.00033692,30]
[423592450,1780252253000,-655.0,0.00033545,9]
[423592448,1780252253000,-1234.37497225,0.000335,2]
[423592449,1780252253000,-805.18,0.000335,30]
[423592451,1780252253000,-1335.43,0.00033636,30]
[423592446,1780252253000,-261.21,0.00033476,7]
[423592452,1780252253000,-244.35,0.00033643,7]
[423592467,1780252253000,-1000.0,0.000337,2]
[423592457,1780252253000,-343.0,0.00033692,30]
[423592469,1780252253000,-192.0,0.00033727,30]
[423592456,1780252253000,-513.0,0.00033692,30]
[423592468,1780252253000,-315.0,0.000337,2]
[423592458,1780252253000,-1421.0,0.00033692,30]
[423592463,1780252253000,-444.0,0.00033694,30]
[423592462,1780252253000,-1199.0,0.00033694,30]
[423592459,1780252253000,-1144.0,0.00033692,30]
[423592460,1780252253000,-157.0,0.00033694,30]
[423592461,1780252253000,-220.0,0.00033694,30]
[423592465,1780252253000,-839.0,0.00033694,30]
[423592464,1780252253000,-287.0,0.00033694,30]
[423592495,1780252253000,-1298.59053919,0.000339,120]
[423592508,1780252253000,-350.0,0.00033973,5]
[423592497,1780252253000,-486.43,0.000339,30]
[423592520,1780252253000,-655.0,0.00034079,9]
[423592527,1780252253000,-2000.0,0.00034247,30]
[423592531,1780252253000,-407.0,0.00034453,2]
[423592535,1780252253000,-150.0,0.00034453,2]
[423592534,1780252253000,-150.0,0.00034453,2]
[423592532,1780252253000,-407.0,0.00034453,2]
[423592538,1780252253000,-400.0,0.00034453,2]
[423592540,1780252253000,-805.18,0.000345,30]
[423592542,1780252253000,-2000.0,0.000346,7]
[423592536,1780252253000,-150.0,0.00034453,2]
[423592541,1780252253000,-5000.0,0.000345,14]
[423592525,1780252253000,-150.0,0.0003419,2]
[423592533,1780252253000,-407.0,0.00034453,2]
[423592537,1780252253000,-400.0,0.00034453,2]
[423592552,1780252253000,-1199.0,0.00034694,30]
[423592547,1780252253000,-343.0,0.00034692,30]
[423592549,1780252253000,-1144.0,0.00034692,30]
[423592548,1780252253000,-1421.0,0.00034692,30]
[423592544,1780252253000,-3163.99,0.00034685,2]
[423592545,1780252253000,-321.0,0.00034692,30]
[423592543,1780252253000,-655.0,0.00034613,10]
[423592550,1780252253000,-157.0,0.00034694,30]
[423592546,1780252253000,-513.0,0.00034692,30]
[423592498,1780252253000,-5020.83,0.000339,14]
[423592539,1780252253000,-400.0,0.00034453,2]
[423592526,1780252253000,-2000.0,0.00034199,21]
[423592551,1780252253000,-220.0,0.00034694,30]
[423592528,1780252253000,-2319.0,0.00034289,11]
[423592523,1780252253000,-7764.55,0.00034148,30]
[423592499,1780252253000,-1657.39985969,0.0003397,2]
[423592505,1780252253000,-1074.35470133,0.0003397,2]
[423592501,1780252253000,-1896.60891511,0.0003397,2]
[423592500,1780252253000,-1189.80734761,0.0003397,2]
[423592503,1780252253000,-1969.29387894,0.0003397,2]
[423592504,1780252253000,-1060.99743393,0.0003397,2]
[423592506,1780252253000,-1097.46862593,0.0003397,2]
[423592517,1780252253000,-1081.69373023,0.00034,2]
[423592507,1780252253000,-1171.04920763,0.0003397,2]
[423592511,1780252253000,-11761.32,0.00034,2]
[423592516,1780252253000,-1176.83203662,0.00034,2]
[423592502,1780252253000,-2049.24424596,0.0003397,2]
[423592513,1780252253000,-1176.63895225,0.00034,2]
[423592510,1780252253000,-7840.87,0.00034,2]
[423592521,1780252253000,-7244.9602,0.00034137,40]
[423592518,1780252253000,-1241.47618314,0.00034046,2]
[423592519,1780252253000,-1239.57537165,0.00034046,2]
[423592529,1780252253000,-1590.0,0.00034289,11]
[423592530,1780252253000,-246.97,0.00034313,7]
[423592514,1780252253000,-1103.37174167,0.00034,2]
[423592512,1780252253000,-750.0,0.00034,2]
[423592515,1780252253000,-1148.51229407,0.00034,2]
[423592509,1780252253000,-237.29,0.00033978,7]
[423592522,1780252253000,-240.7,0.00034146,7]
[423592524,1780252253000,-772.6,0.00034182,7]
[423592579,1780252254000,-2445.37886363,0.00035,120]
[423592580,1780252254000,-1036.60253855,0.00035,120]
[423592585,1780252254000,-1106.55898899,0.00035,120]
[423592578,1780252254000,-689.86263822,0.00035,120]
[423592582,1780252254000,-922.9385503,0.00035,120]
[423592588,1780252254000,-1298.59053919,0.00035,120]
[423592586,1780252254000,-703.41061854,0.00035,120]
[423592583,1780252254000,-1071.12217871,0.00035,120]
[423592587,1780252254000,-1000.65067019,0.00035,14]
[423592584,1780252254000,-2474.04258438,0.00035,120]
[423592594,1780252254000,-545246.31332924,0.00035,2]
[423592600,1780252254000,-389.761139,0.00035,7]
[423592589,1780252254000,-593.30220303,0.00035,120]
[423592591,1780252254000,-182.1819368,0.00035,120]
[423592593,1780252254000,-161.08417232,0.00035,30]
[423592592,1780252254000,-1341.74326253,0.00035,7]
[423592596,1780252254000,-843.767474,0.00035,7]
[423592597,1780252254000,-843.767474,0.00035,7]
[423592577,1780252254000,-670.87163126,0.00035,7]
[423592595,1780252254000,-843.767474,0.00035,7]
[423592590,1780252254000,-1954.28643989,0.00035,2]
[423592573,1780252254000,-2333.49973571,0.00035,120]
[423592564,1780252254000,-1000.0,0.00034934,3]
[423592568,1780252254000,-499.59871036,0.00035,120]
[423592599,1780252254000,-389.761139,0.00035,7]
[423592553,1780252254000,-444.0,0.00034694,30]
[423592555,1780252254000,-839.0,0.00034694,30]
[423592556,1780252254000,-5020.83,0.000347,14]
[423592554,1780252254000,-287.0,0.00034694,30]
[423592557,1780252254000,-192.0,0.00034727,30]
[423592558,1780252254000,-1841.0,0.00034727,30]
[423592559,1780252254000,-510.10840432,0.00034751,2]
[423592560,1780252254000,-1500.0,0.00034795,2]
[423592563,1780252254000,-350.0,0.00034931,5]
[423592561,1780252254000,-1042433.86195223,0.000349,3]
[423592562,1780252254000,-151.0,0.000349,7]
[423592566,1780252254000,-1516.05562058,0.00035,120]
[423592565,1780252254000,-1922.37921332,0.00035,120]
[423592576,1780252254000,-636.0766213,0.00035,120]
[423592571,1780252254000,-364.59165124,0.00035,120]
[423592574,1780252254000,-665.30118934,0.00035,120]
[423592575,1780252254000,-1092.64746426,0.00035,120]
[423592567,1780252254000,-1019.81649657,0.00035,120]
[423592569,1780252254000,-753.93666593,0.00035,120]
[423592572,1780252254000,-1072.17459399,0.00035,120]
[423592570,1780252254000,-1057.84613436,0.00035,120]
[423592598,1780252254000,-843.767474,0.00035,7]
[423592581,1780252254000,-797.16641382,0.00035,120]
[423592612,1780252254000,-1469.428798,0.00035,7]
[423592628,1780252254000,-2000.0,0.00035,7]
[423592626,1780252254000,-151.0,0.00035,7]
[423592638,1780252254000,-151.0,0.00035234,14]
[423592630,1780252254000,-10259.85300746,0.00035034,5]
[423592633,1780252254000,-932.0,0.00035078,2]
[423592631,1780252254000,-1273.0,0.00035078,2]
[423592636,1780252254000,-655.0,0.00035147,10]
[423592632,1780252254000,-1226.0,0.00035078,2]
[423592635,1780252254000,-2000.0,0.00035128,69]
[423592634,1780252254000,-413.61503396,0.0003508,5]
[423592640,1780252254000,-500.0,0.00035361,2]
[423592639,1780252254000,-25000.0,0.00035353,10]
[423592641,1780252254000,-500.0,0.00035361,2]
[423592647,1780252254000,-25000.0,0.00035362,10]
[423592649,1780252254000,-1685.61805561,0.0003537,2]
[423592642,1780252254000,-500.0,0.00035361,2]
[423592644,1780252254000,-500.0,0.00035361,2]
[423592646,1780252254000,-731.12,0.00035361,2]
[423592648,1780252254000,-631.68,0.00035369,2]
[423592645,1780252254000,-500.0,0.00035361,2]
[423592602,1780252254000,-389.761139,0.00035,7]
[423592637,1780252254000,-2507.608,0.00035163,41]
[423592627,1780252254000,-151.0,0.00035,7]
[423592629,1780252254000,-4917.82941975,0.00035034,5]
[423592624,1780252254000,-1038.973676,0.00035,7]
[423592601,1780252254000,-389.761139,0.00035,7]
[423592603,1780252254000,-311.217823,0.00035,7]
[423592604,1780252254000,-151.0,0.00035,7]
[423592605,1780252254000,-311.217823,0.00035,7]
[423592625,1780252254000,-1038.973676,0.00035,7]
[423592611,1780252254000,-151.0,0.00035,7]
[423592607,1780252254000,-311.217823,0.00035,7]
[423592606,1780252254000,-151.0,0.00035,7]
[423592609,1780252254000,-152.312056,0.00035,7]
[423592608,1780252254000,-311.217823,0.00035,7]
[423592613,1780252254000,-1067.568537,0.00035,7]
[423592610,1780252254000,-1067.568537,0.00035,7]
[423592615,1780252254000,-1469.428798,0.00035,7]
[423592621,1780252254000,-151.0,0.00035,7]
[423592643,1780252254000,-717.61,0.00035361,2]
[423592620,1780252254000,-151.0,0.00035,7]
[423592622,1780252254000,-1038.973676,0.00035,7]
[423592614,1780252254000,-151.0,0.00035,7]
[423592619,1780252254000,-1469.428798,0.00035,7]
[423592617,1780252254000,-1469.428798,0.00035,7]
[423592618,1780252254000,-1067.568537,0.00035,7]
[423592616,1780252254000,-1067.568537,0.00035,7]
[423592623,1780252254000,-1038.973676,0.00035,7]
[423592657,1780252255000,-385.1964353,0.00024658,2]
[423592659,1780252255000,-500.0,0.00024658,2]
[423592662,1780252255000,-10.9735647,0.00024658,2]
[423592660,1780252255000,-500.0,0.00024658,2]
[423592661,1780252255000,-500.0,0.00024658,2]
[423592663,1780252255000,-572.92615608,0.00024658,2]
[423592651,1780252255000,-2090.40897658,0.00010376,2]
[423592655,1780252255000,-114.8035647,0.00024658,2]
[423592653,1780252255000,-210.3626958,0.00024658,2]
[423592654,1780252255000,-500.0,0.00024658,2]
[423592652,1780252255000,-2904.59102342,0.00010376,2]
[423592650,1780252255000,-289.6373042,0.00024658,2]
[423592665,1780252255000,-1478.37194439,0.0003537,2]
[423592656,1780252255000,-322.0,0.00022136,7]
[423592675,1780252255000,-500.0,0.0003537,2]
[423592658,1780252255000,-500.0,0.00024658,2]
[423592666,1780252255000,-355.0,0.0003537,2]
[423592680,1780252255000,-999.36301871,0.00035371,10]
[423592682,1780252255000,-5358.37145375,0.00035389,10]
[423592679,1780252255000,-24000.63698129,0.00035371,10]
[423592678,1780252255000,-596.69,0.0003537,2]
[423592681,1780252255000,-25000.0,0.0003538,10]
[423592677,1780252255000,-500.0,0.0003537,2]
[423592674,1780252255000,-500.0,0.0003537,2]
[423592676,1780252255000,-500.0,0.0003537,2]
[423592670,1780252255000,-500.0,0.0003537,2]
[423592669,1780252255000,-500.0,0.0003537,2]
[423592672,1780252255000,-500.0,0.0003537,2]
[423592671,1780252255000,-500.0,0.0003537,2]
[423592668,1780252255000,-500.0,0.0003537,2]
[423592667,1780252255000,-707.62968569,0.0003537,2]
[423592664,1780252255000,-251.88,0.00026158,2]
[423592673,1780252255000,-826.41,0.0003537,2]
[423592684,1780252256000,-15258.11481458,0.00035397,10]
[423592683,1780252256000,-19641.62854625,0.00035389,10]
[423592685,1780252256000,-2194.15112385,0.00028659,30]
[423592686,1780252256000,-20.38557482,0.00028659,30]
[423592689,1780252256000,-2428.55,0.00028987,2]
[423592687,1780252256000,-214.01330133,0.00028659,30]
[423592691,1780252256000,-2428.55,0.00029315,7]
[423592688,1780252256000,-2428.55,0.00028823,7]